[Event "Early-Titled-Tuesday-Blitz-February-13-2024"]
[Site "Chess.com"]
[Date "2024.02.13"]
[Round "2"]
[White "ukchessbomber"]
[Black "TigrVShlyape"]
[Result "1/2-1/2"]
[WhiteElo "2607"]
[BlackElo "2863"]
[TimeControl "180+1"]
[EndTime "8:22:16 PST"]
[Termination "Game drawn by repetition"]

1. c4 {[%clk 0:03:00.9]} 1... f5 {[%clk 0:02:58.4]} 2. b3 {[%clk 0:02:48.3]}
2... e5 {[%clk 0:02:52.1]} 3. Bb2 {[%clk 0:02:48.3]} 3... d6 {[%clk 0:02:44.3]}
4. g3 {[%clk 0:02:48.4]} 4... Nf6 {[%clk 0:02:43.6]} 5. Bg2 {[%clk 0:02:48.9]}
5... g6 {[%clk 0:02:43.4]} 6. e3 {[%clk 0:02:48.5]} 6... Bg7 {[%clk 0:02:43.2]}
7. Ne2 {[%clk 0:02:49.1]} 7... O-O {[%clk 0:02:42.4]} 8. O-O {[%clk 0:02:49.8]}
8... c6 {[%clk 0:02:24.6]} 9. d3 {[%clk 0:02:48.5]} 9... Re8 {[%clk 0:02:23.3]}
10. b4 {[%clk 0:02:48.3]} 10... Be6 {[%clk 0:02:13.4]} 11. a4 {[%clk 0:02:47.6]}
11... Nbd7 {[%clk 0:02:12.7]} 12. a5 {[%clk 0:02:39.5]} 12... Rc8 {[%clk
0:02:09]} 13. b5 {[%clk 0:02:28]} 13... cxb5 {[%clk 0:02:07.3]} 14. cxb5 {[%clk
0:02:27.7]} 14... d5 {[%clk 0:02:02.7]} 15. d4 {[%clk 0:01:46.6]} 15... e4
{[%clk 0:02:01]} 16. Nd2 {[%clk 0:01:45.9]} 16... Bf7 {[%clk 0:01:53.5]} 17. Qa4
{[%clk 0:01:45.4]} 17... g5 {[%clk 0:01:50.1]} 18. Rfc1 {[%clk 0:01:45.6]} 18...
Qe7 {[%clk 0:01:37.4]} 19. Ba3 {[%clk 0:01:44.3]} 19... Qe6 {[%clk 0:01:36.9]}
20. Nb3 {[%clk 0:01:44]} 20... Bh5 {[%clk 0:01:35.5]} 21. Bf1 {[%clk 0:01:19.1]}
21... f4 {[%clk 0:01:32.6]} 22. Rxc8 {[%clk 0:01:11.1]} 22... Rxc8 {[%clk
0:01:31.7]} 23. Rc1 {[%clk 0:01:11.6]} 23... Rxc1 {[%clk 0:01:28.9]} 24. Bxc1
{[%clk 0:01:09.9]} 24... Bxe2 {[%clk 0:01:10.4]} 25. Bxe2 {[%clk 0:01:10.1]}
25... f3 {[%clk 0:01:10.8]} 26. Bf1 {[%clk 0:01:10.3]} 26... b6 {[%clk
0:01:09.8]} 27. axb6 {[%clk 0:00:59.9]} 27... axb6 {[%clk 0:01:09.3]} 28. Qa8+
{[%clk 0:01:00.1]} 28... Kf7 {[%clk 0:01:07.6]} 29. Qc6 {[%clk 0:01:00.7]} 29...
Bf8 {[%clk 0:01:05.1]} 30. Bd2 {[%clk 0:00:25.6]} 30... h5 {[%clk 0:01:02.5]}
31. Na1 {[%clk 0:00:19.8]} 31... Ne8 {[%clk 0:00:59.4]} 32. Qb7 {[%clk
0:00:06.2]} 32... Nd6 {[%clk 0:00:55.7]} 33. Qc7 {[%clk 0:00:06.5]} 33... Nc4
{[%clk 0:00:28.3]} 34. Be1 {[%clk 0:00:06.7]} 34... Qd6 {[%clk 0:00:22.1]} 35.
Qc6 {[%clk 0:00:05.1]} 35... Na5 {[%clk 0:00:20.6]} 36. Qc8 {[%clk 0:00:04.5]}
36... Ke7 {[%clk 0:00:15.7]} 37. Nc2 {[%clk 0:00:04.7]} 37... Qb8 {[%clk
0:00:15.5]} 38. Bb4+ {[%clk 0:00:04.5]} 38... Ke6 {[%clk 0:00:13.7]} 39. Qxb8
{[%clk 0:00:03.8]} 39... Nxb8 {[%clk 0:00:13.2]} 40. Bxf8 {[%clk 0:00:04.7]}
40... Nd7 {[%clk 0:00:12.8]} 41. Bb4 {[%clk 0:00:05.1]} 41... Nb3 {[%clk
0:00:10.1]} 42. Bc3 {[%clk 0:00:04.7]} 42... g4 {[%clk 0:00:09.6]} 43. Nb4
{[%clk 0:00:05]} 43... Nc1 {[%clk 0:00:08.6]} 44. Nc6 {[%clk 0:00:03.4]} 44...
Nf6 {[%clk 0:00:07.3]} 45. Bd2 {[%clk 0:00:03.6]} 45... Nb3 {[%clk 0:00:07.1]}
46. Nd8+ {[%clk 0:00:03.4]} 46... Kd7 {[%clk 0:00:06.8]} 47. Nf7 {[%clk
0:00:03.7]} 47... Nxd2 {[%clk 0:00:06.6]} 48. Ne5+ {[%clk 0:00:04.3]} 48... Ke6
{[%clk 0:00:07]} 49. Ng6 {[%clk 0:00:04.7]} 49... Kd6 {[%clk 0:00:06.6]} 50. Ne5
{[%clk 0:00:03.8]} 50... Ke6 {[%clk 0:00:06.5]} 51. h4 {[%clk 0:00:02.8]} 51...
Ne8 {[%clk 0:00:06.3]} 52. Ng6 {[%clk 0:00:01.9]} 52... Nc7 {[%clk 0:00:06.4]}
53. Nf4+ {[%clk 0:00:02.6]} 53... Kf5 {[%clk 0:00:06.5]} 54. Nxh5 {[%clk
0:00:03.5]} 54... Nc4 {[%clk 0:00:06.1]} 55. Ng7+ {[%clk 0:00:03.4]} 55... Kf6
{[%clk 0:00:05.9]} 56. Nh5+ {[%clk 0:00:03.5]} 56... Kf5 {[%clk 0:00:06.1]} 57.
Nf4 {[%clk 0:00:03.9]} 57... Nd6 {[%clk 0:00:05.4]} 58. h5 {[%clk 0:00:04.2]}
58... Nf7 {[%clk 0:00:05.5]} 59. Kh2 {[%clk 0:00:03.6]} 59... Nh6 {[%clk
0:00:05.8]} 60. Kh1 {[%clk 0:00:03.8]} 60... Kg5 {[%clk 0:00:06.2]} 61. Kh2
{[%clk 0:00:04.1]} 61... Nf5 {[%clk 0:00:06.7]} 62. Kg1 {[%clk 0:00:04.1]} 62...
Ng7 {[%clk 0:00:07.2]} 63. Ng6 {[%clk 0:00:02.9]} 63... Nxh5 {[%clk 0:00:06.6]}
64. Ne7 {[%clk 0:00:03.6]} 64... Nf6 {[%clk 0:00:06.9]} 65. Nc8 {[%clk
0:00:03.7]} 65... Kf5 {[%clk 0:00:06.5]} 66. Nxb6 {[%clk 0:00:03.6]} 66... Ke6
{[%clk 0:00:06.6]} 67. Na4 {[%clk 0:00:03.6]} 67... Nd7 {[%clk 0:00:05.9]} 68.
Nc5+ {[%clk 0:00:02.6]} 68... Kd6 {[%clk 0:00:05.6]} 69. Nb7+ {[%clk 0:00:02.3]}
69... Ke7 {[%clk 0:00:05.7]} 70. Nc5 {[%clk 0:00:02.6]} 70... Nb6 {[%clk
0:00:06.1]} 71. Na6 {[%clk 0:00:02.4]} 71... Kd6 {[%clk 0:00:06.1]} 72. Nb4
{[%clk 0:00:02.6]} 72... Na4 {[%clk 0:00:05.3]} 73. Nc6 {[%clk 0:00:02.9]} 73...
Na8 {[%clk 0:00:05.1]} 74. Ne5 {[%clk 0:00:03.3]} 74... N8b6 {[%clk 0:00:05.1]}
75. Nxg4 {[%clk 0:00:03.9]} 75... Nc3 {[%clk 0:00:05.4]} 76. Nh6 {[%clk
0:00:04.2]} 76... Nc4 {[%clk 0:00:05.5]} 77. Nf5+ {[%clk 0:00:04.3]} 77... Ke6
{[%clk 0:00:05.8]} 78. Bxc4 {[%clk 0:00:02.5]} 78... dxc4 {[%clk 0:00:05.6]} 79.
b6 {[%clk 0:00:03.4]} 79... Ne2+ {[%clk 0:00:04.6]} 80. Kh2 {[%clk 0:00:03.4]}
80... c3 {[%clk 0:00:05]} 81. b7 {[%clk 0:00:03.7]} 81... c2 {[%clk 0:00:05.1]}
82. b8=Q {[%clk 0:00:04.3]} 82... c1=Q {[%clk 0:00:05.3]} 83. Qe5+ {[%clk
0:00:03.4]} 83... Kf7 {[%clk 0:00:05.6]} 84. Qg7+ {[%clk 0:00:03.1]} 84... Ke6
{[%clk 0:00:05.8]} 85. Qe5+ {[%clk 0:00:03.8]} 85... Kf7 {[%clk 0:00:06.1]} 86.
Nd6+ {[%clk 0:00:04]} 86... Kg6 {[%clk 0:00:05.5]} 87. Qf5+ {[%clk 0:00:04]}
87... Kh6 {[%clk 0:00:04.5]} 88. Qf6+ {[%clk 0:00:04.6]} 88... Kh7 {[%clk
0:00:04.9]} 89. Qf7+ {[%clk 0:00:04.7]} 89... Kh6 {[%clk 0:00:05]} 90. Qf6+
{[%clk 0:00:05.2]} 90... Kh7 {[%clk 0:00:05.3]} 91. Qe7+ {[%clk 0:00:04.7]}
91... Kh6 {[%clk 0:00:05]} 92. Qe6+ {[%clk 0:00:05.4]} 92... Kh5 {[%clk
0:00:02.8]} 93. Qe5+ {[%clk 0:00:04.8]} 93... Kh6 {[%clk 0:00:02.8]} 94. Nf5+
{[%clk 0:00:05.4]} 94... Kg6 {[%clk 0:00:02.8]} 95. Qe6+ {[%clk 0:00:04.2]}
95... Kg5 {[%clk 0:00:02.8]} 96. Qe7+ {[%clk 0:00:03.4]} 96... Kxf5 {[%clk
0:00:03]} 97. Qf7+ {[%clk 0:00:04.1]} 97... Kg5 {[%clk 0:00:03.4]} 98. Qg7+
{[%clk 0:00:04.5]} 98... Kf5 {[%clk 0:00:03.9]} 99. Qf7+ {[%clk 0:00:04.7]}
99... Kg5 {[%clk 0:00:04.4]} 100. Qg7+ {[%clk 0:00:05.2]} 100... Kf5 {[%clk
0:00:04.9]} 101. g4+ {[%clk 0:00:05.1]} 101... Ke6 {[%clk 0:00:04.9]} 102. Qe5+
{[%clk 0:00:06]} 102... Kd7 {[%clk 0:00:05]} 103. Qd5+ {[%clk 0:00:06.4]} 103...
Kc7 {[%clk 0:00:05.3]} 104. Qe5+ {[%clk 0:00:07.1]} 104... Kd7 {[%clk
0:00:05.6]} 105. Qd5+ {[%clk 0:00:07.6]} 105... Kc7 {[%clk 0:00:05.3]} 106. Qe5+
{[%clk 0:00:08.3]} 106... Kd7 {[%clk 0:00:05.5]} 1/2-1/2

[Event "Early-Titled-Tuesday-Blitz-February-13-2024"]
[Site "Chess.com"]
[Date "2024.02.13"]
[Round "2"]
[White "WilsonPalencia21"]
[Black "omer1997"]
[Result "1/2-1/2"]
[WhiteElo "2592"]
[BlackElo "2335"]
[TimeControl "180+1"]
[EndTime "8:22:24 PST"]
[Termination "Game drawn by repetition"]

1. d4 {[%clk 0:02:57.8]} 1... d5 {[%clk 0:02:58.2]} 2. c4 {[%clk 0:02:57.7]}
2... c6 {[%clk 0:02:58.5]} 3. Nf3 {[%clk 0:02:57.8]} 3... Nf6 {[%clk 0:02:58]}
4. Nc3 {[%clk 0:02:58.3]} 4... dxc4 {[%clk 0:02:57.8]} 5. a4 {[%clk 0:02:58.1]}
5... Bf5 {[%clk 0:02:57.6]} 6. Ne5 {[%clk 0:02:57.8]} 6... Nbd7 {[%clk
0:02:56.8]} 7. Nxc4 {[%clk 0:02:57.8]} 7... Qc7 {[%clk 0:02:57.5]} 8. g3 {[%clk
0:02:57.4]} 8... e5 {[%clk 0:02:56.7]} 9. dxe5 {[%clk 0:02:58.3]} 9... Nxe5
{[%clk 0:02:57.4]} 10. Bf4 {[%clk 0:02:58.9]} 10... Nfd7 {[%clk 0:02:56]} 11.
Bg2 {[%clk 0:02:59.2]} 11... Be6 {[%clk 0:02:50]} 12. Nxe5 {[%clk 0:02:58.7]}
12... Nxe5 {[%clk 0:02:50.9]} 13. O-O {[%clk 0:02:54.5]} 13... f6 {[%clk
0:02:48.8]} 14. a5 {[%clk 0:02:54.2]} 14... a6 {[%clk 0:02:36.1]} 15. Qc2 {[%clk
0:02:36.9]} 15... Rd8 {[%clk 0:02:06.3]} 16. Ne4 {[%clk 0:02:30.6]} 16... Be7
{[%clk 0:01:50.5]} 17. Nc5 {[%clk 0:02:30.2]} 17... Bxc5 {[%clk 0:01:39]} 18.
Qxc5 {[%clk 0:02:31.1]} 18... Kf7 {[%clk 0:01:38]} 19. Qb4 {[%clk 0:02:01.2]}
19... Rd7 {[%clk 0:01:27.8]} 20. Be3 {[%clk 0:01:58.6]} 20... Qd6 {[%clk
0:01:22.4]} 21. Bc5 {[%clk 0:01:31.6]} 21... Qd2 {[%clk 0:01:22]} 22. f4 {[%clk
0:01:31.7]} 22... Qxb4 {[%clk 0:01:15]} 23. Bxb4 {[%clk 0:01:31]} 23... Nc4
{[%clk 0:01:14.7]} 24. Bc3 {[%clk 0:01:24.6]} 24... Ne3 {[%clk 0:01:10.6]} 25.
Rfc1 {[%clk 0:01:24.3]} 25... Nxg2 {[%clk 0:01:09.3]} 26. Kxg2 {[%clk
0:01:24.5]} 26... Bd5+ {[%clk 0:01:06.2]} 27. Kf2 {[%clk 0:01:24.5]} 27... Re8
{[%clk 0:01:04.1]} 28. Rd1 {[%clk 0:01:20.5]} 28... Re4 {[%clk 0:01:03.7]} 29.
Rd4 {[%clk 0:01:15.8]} 29... Rde7 {[%clk 0:00:57.5]} 30. Rxe4 {[%clk 0:01:15.6]}
30... Rxe4 {[%clk 0:00:58.4]} 31. e3 {[%clk 0:01:16]} 31... h5 {[%clk
0:00:54.2]} 32. Bd4 {[%clk 0:01:11.7]} 32... Kg6 {[%clk 0:00:49.7]} 33. h3
{[%clk 0:01:08.4]} 33... Kf5 {[%clk 0:00:48.4]} 34. g4+ {[%clk 0:01:01.8]} 34...
hxg4 {[%clk 0:00:38.4]} 35. hxg4+ {[%clk 0:01:02.7]} 35... Kg6 {[%clk
0:00:38.6]} 36. b4 {[%clk 0:00:58.8]} 36... Re8 {[%clk 0:00:36.5]} 37. Re1
{[%clk 0:00:52]} 37... Be4 {[%clk 0:00:34.3]} 38. Rd1 {[%clk 0:00:50.6]} 38...
Rh8 {[%clk 0:00:33.4]} 39. Bc5 {[%clk 0:00:47.3]} 39... Bd5 {[%clk 0:00:31.9]}
40. Rd4 {[%clk 0:00:46.5]} 40... Rh2+ {[%clk 0:00:31]} 41. Kf1 {[%clk
0:00:41.6]} 41... Rh1+ {[%clk 0:00:29.3]} 42. Kf2 {[%clk 0:00:41.4]} 42... Rh2+
{[%clk 0:00:27]} 43. Kg3 {[%clk 0:00:41.3]} 43... Re2 {[%clk 0:00:26.9]} 44. Rd3
{[%clk 0:00:27]} 44... Kf7 {[%clk 0:00:26.9]} 45. f5 {[%clk 0:00:22.9]} 45... g6
{[%clk 0:00:27.2]} 46. fxg6+ {[%clk 0:00:22.7]} 46... Kxg6 {[%clk 0:00:28.1]}
47. Bd4 {[%clk 0:00:21.7]} 47... Kg5 {[%clk 0:00:26.9]} 48. Rd1 {[%clk
0:00:20.9]} 48... Rg2+ {[%clk 0:00:26.1]} 49. Kh3 {[%clk 0:00:21.2]} 49... Rc2
{[%clk 0:00:21.9]} 50. Kg3 {[%clk 0:00:18.7]} 50... Ra2 {[%clk 0:00:17.6]} 51.
Rf1 {[%clk 0:00:17.4]} 51... Rg2+ {[%clk 0:00:17.2]} 52. Kh3 {[%clk 0:00:17.6]}
52... Rxg4 {[%clk 0:00:09.2]} 53. Bxf6+ {[%clk 0:00:17.4]} 53... Kh5 {[%clk
0:00:06.4]} 54. Rf5+ {[%clk 0:00:17.2]} 54... Kg6 {[%clk 0:00:06.3]} 55. Kxg4
{[%clk 0:00:17.1]} 55... Be6 {[%clk 0:00:06.8]} 56. Kf4 {[%clk 0:00:16.5]} 56...
Bxf5 {[%clk 0:00:07]} 57. Ke5 {[%clk 0:00:16.7]} 57... Bd3 {[%clk 0:00:06.6]}
58. Bh4 {[%clk 0:00:16.5]} 58... Kf7 {[%clk 0:00:06.7]} 59. e4 {[%clk
0:00:13.9]} 59... Ke8 {[%clk 0:00:06.7]} 60. Bg5 {[%clk 0:00:11.3]} 60... Kd7
{[%clk 0:00:07.2]} 61. Kd4 {[%clk 0:00:11.7]} 61... Bb1 {[%clk 0:00:07.6]} 62.
Ke5 {[%clk 0:00:12]} 62... Bc2 {[%clk 0:00:07.8]} 63. Bf6 {[%clk 0:00:11.3]}
63... Bb1 {[%clk 0:00:07.9]} 64. Kf5 {[%clk 0:00:11.6]} 64... Kd6 {[%clk
0:00:07.1]} 65. Be5+ {[%clk 0:00:11.6]} 65... Ke7 {[%clk 0:00:07]} 66. Bd4
{[%clk 0:00:12]} 66... Kd6 {[%clk 0:00:07.1]} 67. Bc5+ {[%clk 0:00:12.2]} 67...
Kd7 {[%clk 0:00:07.7]} 68. Ke5 {[%clk 0:00:12.6]} 68... Bc2 {[%clk 0:00:07.5]}
69. Kd4 {[%clk 0:00:12.6]} 69... Bb1 {[%clk 0:00:08.1]} 70. Ke5 {[%clk
0:00:12.6]} 70... Bc2 {[%clk 0:00:08.5]} 71. Kf4 {[%clk 0:00:12.9]} 71... Bb1
{[%clk 0:00:09]} 72. e5 {[%clk 0:00:13]} 72... Ba2 {[%clk 0:00:08.9]} 73. Kg5
{[%clk 0:00:13]} 73... Ke6 {[%clk 0:00:08.7]} 74. Kf4 {[%clk 0:00:13.1]} 74...
Bb3 {[%clk 0:00:08.6]} 75. Ke4 {[%clk 0:00:13.4]} 75... Bc4 {[%clk 0:00:09.3]}
76. Bd6 {[%clk 0:00:13.7]} 76... Bb5 {[%clk 0:00:08.7]} 77. Kf4 {[%clk
0:00:13.8]} 77... Kd7 {[%clk 0:00:08.7]} 78. Kf5 {[%clk 0:00:13.9]} 78... Bc4
{[%clk 0:00:09.2]} 79. Kf6 {[%clk 0:00:14.3]} 79... Bb3 {[%clk 0:00:09.9]} 80.
Bc5 {[%clk 0:00:14.6]} 80... Ba2 {[%clk 0:00:09.9]} 81. Kg7 {[%clk 0:00:14.5]}
81... Bb3 {[%clk 0:00:10.5]} 82. Kf8 {[%clk 0:00:14.5]} 82... Ba2 {[%clk
0:00:11]} 83. Bd6 {[%clk 0:00:14.8]} 83... Bb3 {[%clk 0:00:11.2]} 84. Kg7 {[%clk
0:00:15.1]} 84... Ba2 {[%clk 0:00:11.8]} 85. Kg6 {[%clk 0:00:15.5]} 85... Bb3
{[%clk 0:00:12.4]} 86. Kf5 {[%clk 0:00:16]} 86... Ba2 {[%clk 0:00:13.1]} 87. Ke4
{[%clk 0:00:16.3]} 87... Bb3 {[%clk 0:00:13.7]} 88. Kd4 {[%clk 0:00:16.7]} 88...
Ba2 {[%clk 0:00:14.2]} 89. Kc5 {[%clk 0:00:16.9]} 89... Bb3 {[%clk 0:00:14.6]}
90. Kb6 {[%clk 0:00:17.2]} 90... Kc8 {[%clk 0:00:15.2]} 91. Kc5 {[%clk 0:00:16]}
91... Ba2 {[%clk 0:00:15.2]} 92. Bf8 {[%clk 0:00:15.7]} 92... Kd7 {[%clk
0:00:15.5]} 93. Bh6 {[%clk 0:00:15.3]} 93... Bb3 {[%clk 0:00:15.5]} 94. Bf4
{[%clk 0:00:15.7]} 94... Ba2 {[%clk 0:00:15.8]} 95. Kb6 {[%clk 0:00:16.1]} 95...
Kc8 {[%clk 0:00:16]} 96. Kc5 {[%clk 0:00:14.1]} 96... Kd7 {[%clk 0:00:14.4]} 97.
Bg3 {[%clk 0:00:12.7]} 97... Bb3 {[%clk 0:00:14.1]} 98. Kd4 {[%clk 0:00:12.8]}
98... Ba2 {[%clk 0:00:14.4]} 99. Ke4 {[%clk 0:00:13.2]} 99... Bb3 {[%clk
0:00:14.8]} 100. Kf5 {[%clk 0:00:13.7]} 100... Ba2 {[%clk 0:00:15.1]} 101. Kf6
{[%clk 0:00:14.2]} 101... Bb3 {[%clk 0:00:15.5]} 102. Bf2 {[%clk 0:00:14.5]}
102... Ba2 {[%clk 0:00:15.6]} 103. Bb6 {[%clk 0:00:14.8]} 103... Bb3 {[%clk
0:00:15.8]} 104. Bc5 {[%clk 0:00:15.2]} 104... Ba2 {[%clk 0:00:16.2]} 105. Kf5
{[%clk 0:00:15.4]} 105... Bb3 {[%clk 0:00:16.6]} 106. Ke4 {[%clk 0:00:15.8]}
106... Ba2 {[%clk 0:00:17.2]} 107. Bd6 {[%clk 0:00:16.2]} 107... Bb3 {[%clk
0:00:17.5]} 108. Kd4 {[%clk 0:00:16.6]} 108... Ba2 {[%clk 0:00:18]} 109. Kc3
{[%clk 0:00:17.1]} 109... Bg8 {[%clk 0:00:17.3]} 110. Kd4 {[%clk 0:00:16.7]}
110... Ba2 {[%clk 0:00:17.5]} 1/2-1/2